Cogmind - Beta 13 X2 @@@ ROGUE MODE // 2024.02.01 @ 13:40:01 Player: arkn Result: Destroyed by G-34 Mercenary with Small Laser Performance ------------- Evolutions (1) 500 Regions Visited (3) 600 Robots Destroyed (44) 220 Value Destroyed (1327) 1327 Prototype IDs (2) 40 Alien Tech Used (0) 0 Bonus (11) 11 TOTAL SCORE: 2698 Bonus ------- High Alert Combat Kills 11 Cogmind --------- Core Integrity 0/400 Matter 214/300 Energy 77/100 System Corruption 1% Temperature Cool (6) Movement Core (350) Ox6 Location -9/Mines Parts ------- > --- POWER (1) -------- (None) > --- PROPULSION (3) --- (None) > --- UTILITY (3) ------ Large Storage Unit > --- WEAPON (2) ------- (None) > --- INVENTORY (15) --- VSS Leg Cesium-ion Thruster Cesium-ion Thruster Improved Heat Sink Structural Scanner Structural Scanner Improved Terrain Scanner Heavy Assault Rifle Plasma Cutter Mace Maul Peak State ------------ > --- POWER ------------ Light Deuterium Engine > --- PROPULSION ------- VSS Leg VSS Leg VSS Leg > --- UTILITY ---------- Large Storage Unit Hardened Light Armor Plating High-powered Tractor Beam > --- WEAPON ----------- Heavy Assault Rifle Shotgun > --- INVENTORY -------- VSS Leg Cesium-ion Thruster Cesium-ion Thruster Cesium-ion Thruster Cesium-ion Thruster Improved Heat Sink Structural Scanner Improved Terrain Scanner Hardened Light Armor Plating Light EM Pulse Cannon Grenade Launcher Plasma Cutter Mace Maul [Rating: 24] Favorites ----------- Power Improved Ion Engine Engine Improved Ion Engine Propulsion Improved Treads Treads Improved Treads Leg VSS Leg Hover Unit Improved Hover Unit Flight Unit Cesium-ion Thruster Utility Large Storage Unit Device Seismic Detector Storage Large Storage Unit Protection Hardened Light Armor Plating Weapon Heavy Assault Rifle Energy Gun Small Laser Energy Cannon Light EM Pulse Cannon Ballistic Gun Heavy Assault Rifle Launcher Rocket Launcher Special Weapon Mining Laser Impact Weapon Mace Build | -11 -10 -9 -9 ------- Run | Yrd Mat Mat Min Slots Evolved 2 | . . 2 . Power . | . . . . Propulsion 1 | . . 1 . Utility 1 | . . 1 . Weapon . | . . . . Parts Attached 60 | 1 16 37 6 Power 7 | . 2 5 . Engine 7 | . 2 5 . Core . | . . . . Reactor . | . . . . Propulsion 13 | . 3 7 3 Treads 5 | . 3 2 . Leg 4 | . . 3 1 Wheel . | . . . . Hover 2 | . . 2 . Flight 2 | . . . 2 Utility 19 | 1 6 11 1 Device 13 | 1 4 8 . Storage 2 | . 2 . . Processor . | . . . . Hackware . | . . . . Protection 4 | . . 3 1 Artifact . | . . . . Weapon 21 | . 5 14 2 Energy Gun 1 | . 1 . . Energy Cannon 8 | . 3 4 1 Ballistic Gun 6 | . . 6 . Ballistic Cannon . | . . . . Launcher 1 | . . . 1 Special Weapon 1 | . 1 . . Impact Weapon 4 | . . 4 . Slashing Weapon . | . . . . Piercing Weapon . | . . . . Special Melee Weapon . | . . . . Unidentified Prototypes 2 | . . 2 . Parts Lost 20 | . 3 5 12 Power 3 | . . 2 1 Propulsion 7 | . 1 1 5 Utility 6 | . 1 2 3 Weapon 4 | . 1 . 3 Highest Loss Streak 12 | . 1 2 12 To Critical Strikes . | . . . . Average Slot Usage (%) 98 | . 99 99 92 Engine 11 | . 14 10 9 Treads 20 | . 27 20 . Leg 10 | . . 11 30 Device 15 | . 14 17 9 Storage 11 | . 14 11 11 Protection 3 | . . 4 10 Energy Gun 1 | . 7 . . Energy Cannon 9 | . 12 9 . Ballistic Gun 9 | . 8 8 19 Impact Weapon 2 | . . 3 . Naked Turns . | . . . . Heaviest Build 41 | 14 37 41 37 Greatest Support 69 | 20 46 69 36 Greatest Overweight (x) 6 | . 1 3 6 Average Overweight (x) . | . . . 1 Largest Inventory Capacity 15 | 8 15 15 15 Average Capacity 13 | 8 8 15 15 Most Carried 15 | 8 9 15 15 Average Carried 12 | 6 8 14 14 Final Capacity 15 | 8 15 15 15 Final Carried 15 | 8 9 15 11 Class Distribution -------------------- 86% | Mutant 13% | Scavenger-Mutant Dominant Class ---------------- Mutant | -10/Materials Mutant | -9/Materials Mutant | -9/Mines Resources | -11 -10 -9 -9 ----------- Run | Yrd Mat Mat Min Matter Collected 1159 | 217 190 735 17 Remotely 570 | . 126 427 17 Salvage Created 1831 | 17 436 1321 57 Parts 110 | 4 31 71 4 Haulers Intercepted 2 | . 1 1 . Recyclers Shooed 1 | . 1 . . Parts Field Recycled . | . . . . Retrieved Matter . | . . . . Parts Self-Destructed . | . . . . Prevented . | . . . . Kills | -11 -10 -9 -9 ------- Run | Yrd Mat Mat Min Combat Hostiles Destroyed 41 | . 10 21 10 Guns 14 | . 3 11 . Cannons 16 | . 7 9 . AOE 10 | . . . 10 Classes Destroyed 12 | 1 5 4 2 Worker 1 | . . . 1 Tunneler 1 | 1 . . . Hauler 2 | . 1 1 . Recycler 2 | . . 2 . Operator 1 | . . 1 . Watcher 5 | . 2 3 . Swarmer 3 | . 3 . . Grunt 14 | . 4 9 1 Brawler 2 | . . 2 . Sentry 10 | . . 10 . Subdweller 3 | . 3 . . Assembled 9 | . . . 9 Best Kill Streak 11 | 1 3 5 11 Combat Bots Only 10 | . 3 4 10 Max Kills in Single Turn 4 | 1 1 1 4 Gunslinging . | . . . . Exploded 4 | . . . 4 Melee . | . . . . Uniques/NPCs Destroyed . | . . . . Combat | -11 -10 -9 -9 -------- Run | Yrd Mat Mat Min Hostile Shots Fired 255 | . 54 123 78 Missed 72 | . 11 39 22 Damage Taken 3023 | . 690 1145 1188 Core 527 | . 119 130 278 Absorbed by Shields . | . . . . Regen/Repaired (Parts) 123 | . . 123 . Core Remaining (%) 76 | 100 52 . . Volleys Fired 157 | 21 40 86 10 Largest 2 | 2 2 2 2 Hottest 140 | 60 140 140 79 Shots Fired 289 | 39 72 167 11 Gun 172 | 39 27 105 1 Cannon 106 | . 43 62 1 Launcher 9 | . . . 9 Special 2 | . 2 . . Kinetic 137 | 21 10 105 1 Thermal 99 | 18 62 19 . Explosive 9 | . . . 9 Electromagnetic 44 | . . 43 1 Robot Hit Streak 16 | 4 14 16 4 Robot Miss Streak 5 | 3 5 5 1 Penetration Max . | . . . . Secondary Targets 1 | . 1 . . Max Gunslinging Chain 1 | . 1 . . Shots Hit Robots 177 | 18 41 115 3 Core Hits 90 | 2 18 43 27 Critical Kills . | . . . . Critical Parts Destroyed 1 | . . 1 . Critical Strikes 1 | . . 1 . Smash 1 | . . 1 . Melee Attacks 23 | . . 23 . Impact 23 | . . 23 . Slashing . | . . . . Piercing . | . . . . Sneak Attacks 1 | . . 1 . Combat Hostiles . | . . . . Follow-up Attacks . | . . . . Damage Inflicted 3894 | 209 752 2057 876 Guns 1392 | 209 253 910 20 Cannons 1595 | . 494 1076 25 Explosions 859 | . . 28 831 Melee 38 | . . 38 . Ramming 10 | . 5 5 . Kinetic 1156 | 115 111 910 20 Thermal 1062 | 94 636 332 . Explosive 831 | . . . 831 Electromagnetic 797 | . . 772 25 Impact 38 | . . 38 . Slashing . | . . . . Piercing . | . . . . Highest Corruption 1 | . . 1 1 Average Corruption 1 | . . 1 1 Corruption Purged . | . . . . Corruption Blocked . | . . . . Effects 5 | . . 5 . Message Errors 2 | . . 2 . Matter Fused 1 | . . 1 . Heat Flow Errors 1 | . . 1 . Alerts 1 | . . 1 . Overload Shots . | . . . . Overflow Damage 78 | . 8 70 . Projectiles 40 | . 8 32 . Explosions . | . . . . Melee 38 | . . 38 . Knockbacks . | . . . . Impact . | . . . . Kinetic . | . . . . Secondary . | . . . . Self-Inflicted Damage 79 | . . . 79 Shots 4 | . . . 4 Rammed 5 | . 4 1 . Targets Rammed 6 | . 4 2 . Kicked 1 | . . 1 . Crushed . | . . . . Highest Temperature 525 | 20 525 348 33 Average Temperature 121 | 17 181 79 14 Received Heat Transfer 991 | . 219 543 229 Effects 12 | . 12 . . Shutdowns 2 | . 2 . . Energy Bleed 4 | . 4 . . Interference 1 | . 1 . . Short Circuit 1 | . 1 . . Damage (minor) 1 | . 1 . . Damage (major) 2 | . 2 . . Damage (core) 1 | . 1 . . Siege Activations . | . . . . Robots Corrupted 1 | . . 1 . Combat Hostiles 1 | . . 1 . Parts Fried 11 | . . 11 . Impact Corruptions 2 | . . 2 . Robots Melted . | . . . . Combat Hostiles . | . . . . Parts Melted 3 | . 2 1 . Heat Transferred 1969 | 225 1139 605 . Parts Sabotaged . | . . . . Parts Stolen . | . . . . Parts Stripped . | . . . . Power Chain Reactions 1 | . . 1 . Missiles Intercepted . | . . . . Alert | -11 -10 -9 -9 ------- Run | Yrd Mat Mat Min Peak Influence 434 | 5 213 434 215 Initial 169 | . 3 50 169 Average 122 | . 54 147 169 Maximum Alert Level 2 | . 1 2 1 Low Security (%) 83 | 100 98 74 98 Level 1 14 | . 1 22 1 Level 2 2 | . . 3 . Level 3 . | . . . . Level 4 . | . . . . Level 5 . | . . . . High Security . | . . . . Max Security . | . . . . Squads Dispatched 3 | . 2 1 . Investigation 1 | . . 1 . Extermination . | . . . . Reinforcement 2 | . 2 . . Assault . | . . . . Garrison . | . . . . Intercept . | . . . . Searches Triggered . | . . . . Construction Impeded . | . . . . Haulers Reinforced . | . . . . Active Scanning Responses . | . . . . Cargo Convoy Interrupts . | . . . . Stealth | -11 -10 -9 -9 --------- Run | Yrd Mat Mat Min Distress Signals 6 | . 1 5 . Communications Jammed . | . . . . Distress Signals . | . . . . Times Spotted 73 | . 14 37 22 Peak Tracking Total 20 | . 3 5 20 Tactical Retreats 5 | . 1 4 . Traps | -11 -10 -9 -9 ------- Run | Yrd Mat Mat Min Traps Triggered . | . . . . Indirectly . | . . . . Trap Hack Attempts . | . . . . Triggered . | . . . . Disarmed . | . . . . Reprogrammed . | . . . . Reused . | . . . . Traps Extracted . | . . . . Installed . | . . . . Triggered . | . . . . Machines | -11 -10 -9 -9 ---------- Run | Yrd Mat Mat Min Machines Disabled 2 | . 1 1 . Max in Single Turn 1 | . 1 1 . Machines Repaired . | . . . . Machines Dismantled . | . . . . Machines Sabotaged . | . . . . Overloaded Fab Kills . | . . . . Hacking | -11 -10 -9 -9 --------- Run | Yrd Mat Mat Min Machines Accessed 10 | . . 10 . Terminals 6 | . . 6 . Fabricators . | . . . . Repair Stations 1 | . . 1 . Recycling Units 1 | . . 1 . Scanalyzers 2 | . . 2 . Garrison Access . | . . . . Total Hacks 30 | . . 30 . Successful 18 | . . 18 . Failed 12 | . . 12 . Catastrophic . | . . . . Database Lockouts . | . . . . Manual 17 | . . 17 . Terminals 19 | . . 19 . Fabricators . | . . . . Repair Stations 4 | . . 4 . Recycling Units 1 | . . 1 . Scanalyzers 6 | . . 6 . Garrison Access . | . . . . Terminal Hacks 4 | . . 4 . Terminal Index 1 | . . 1 . Zone Layout 3 | . . 3 . Fabricator Hacks . | . . . . Repair Station Hacks 4 | . . 4 . Scan Component 2 | . . 2 . Repair 2 | . . 2 . Recycling Unit Hacks . | . . . . Scanalyzer 5 | . . 5 . Insert Component 3 | . . 3 . Analyze 2 | . . 2 . Garrison Access Hacks . | . . . . Unauthorized Hacks 5 | . . 5 . Terminals 4 | . . 4 . Assimilate 2 | . . 2 . Botnet 1 | . . 1 . Operators 1 | . . 1 . Fabricators . | . . . . Repair Stations . | . . . . Recycling Units 1 | . . 1 . Monitor 1 | . . 1 . Scanalyzers . | . . . . Garrison Access . | . . . . Data Cores Recovered 1 | . . 1 . Used 1 | . . 1 . Hacking Detections 8 | . . 8 . Full Trace Events 2 | . . 2 . Feedback Events 1 | . . 1 . Corruption 1 | . . 1 . Feedback Blocked . | . . . . Robot Schematics Acquired . | . . . . Robots Built . | . . . . Authchips . | . . . . Time . | . . . . Total Robot Build Rating . | . . . . Part Schematics Acquired 2 | . . 2 . Parts Built . | . . . . Authchips . | . . . . Time . | . . . . Total Part Build Rating . | . . . . Parts Repaired 2 | . . 2 . Time 58 | . . 58 . Parts Recycled . | . . . . Recycled Matter . | . . . . Retrieved Matter . | . . . . Retrieved Components . | . . . . Parts Scanalyzed 2 | . . 2 . Part Schematics Acquired 2 | . . 2 . Parts Damaged . | . . . . Bothacking | -11 -10 -9 -9 ------------ Run | Yrd Mat Mat Min Used RIF Installer . | . . . . Robots Hacked . | . . . . Non-combat . | . . . . Combat . | . . . . Robot Hacks Applied . | . . . . Relay Couplers Released . | . . . . Fabnet Peak Effective % . | . . . . Robots Rewired . | . . . . Allies Hacked . | . . . . Hacks Repelled . | . . . . Allies | -11 -10 -9 -9 -------- Run | Yrd Mat Mat Min Total Allies 1 | . . 1 . Largest Group 1 | . . 1 . Highest-Rated Group 10 | . . 10 . Highest-Rated Ally 10 | . . 10 . Total Orders . | . . . . Ally Attacks . | . . . . Total Damage . | . . . . Kills . | . . . . Allies Corrupted . | . . . . Allies Melted . | . . . . Intel | -11 -10 -9 -9 ------- Run | Yrd Mat Mat Min Robot Analysis Total . | . . . . Derelict Logs Recovered . | . . . . Drone Launches . | . . . . Drone Recoveries . | . . . . Exploration | -11 -10 -9 -9 ------------- Run | Yrd Mat Mat Min Turns Passed 3785 | 70 979 2378 358 Spaces Moved 1469 | 6 248 1062 153 Core 3 | . . . 3 Treads 846 | . 233 613 . Legs 575 | 6 15 409 145 Wheels . | . . . . Hover 40 | . . 40 . Flight 5 | . . . 5 Fastest Speed 90 | 120 120 90 112 Average Speed 157 | 120 157 154 182 Slowest Speed 360 | 120 240 360 350 Overloaded Moves . | . . . . Propulsion Burnouts . | . . . . Robots Hopped . | . . . . Cave-ins Triggered . | . . . . Exploration Rate (%) 39 | 3 45 76 32 Regions Visited 3 Branch Regions 1 Pre-discovered Areas . | . . . . Known Exits Taken . | . . . . Unknown Exits Taken 3 | 1 1 1 . Scrap Searched 1 | . . . 1 Spaces Dug 23 | . 3 20 . Terrain Destroyed 92 | . 13 29 50 Melee 20 | . . 20 . Projectile 16 | . 13 3 . AOE 56 | . . 6 50 Terrain Rammed . | . . . . Walls Destroyed . | . . . . Machines Disabled . | . . . . Actions | -11 -10 -9 -9 --------- Run | Yrd Mat Mat Min Total 2596 | 29 758 1587 222 Wait 805 | . 432 320 53 Move 1466 | 5 247 1061 153 Hop . | . . . . Pick Up 41 | 2 9 30 . Fast Attach 16 | 1 5 10 . Attach 14 | . 3 7 4 Detach 1 | . . 1 . Swap 30 | . 8 20 2 Drop 37 | . 10 27 . Fire 157 | 21 40 86 10 Melee 23 | . . 23 . Ram . | . . . . Kick 1 | . . 1 . Crush 5 | . 4 1 . Escape Stasis . | . . . . Rewire . | . . . . Trap . | . . . . Miscellaneous . | . . . . Route ------- -11/Scrapyard -10/Materials (discovered 3 exits: *Mat / [*Min] / [*Sub]) -9/Materials (discovered 4 exits: [*Mat x2] / [*Min x2]) -9/Mines History --------- Turn | Location | Event 52 | -11/Scrapyard | Discovered new exit (range 2) 71 | -11/Scrapyard | Entered Materials 287 | -10/Materials | Discovered new exit (range 3) 310 | -10/Materials | Build established: Mutant 500 | -10/Materials | Derelicts attacked the area 915 | -10/Materials | Discovered new exit (range 11) 986 | -10/Materials | Discovered new exit (range 14) 1050 | -10/Materials | Entered another Materials area 1050 | -9/Materials | Evolved 2 slots: Propulsion x1, Utility x1 1388 | -9/Materials | Discovered new exit (range 9) 2413 | -9/Materials | Discovered new exit (range 13) 2869 | -9/Materials | Repaired Hvy. Assault Rifle 2897 | -9/Materials | Repaired Lgt. Armor Plating 2967 | -9/Materials | Discovered new exit (range 13) 3214 | -9/Materials | Discovered new exit (range 6) 3428 | -9/Materials | Entered Mines 3476 | -9/Mines | Met a Derelict bent on vengeance 3722 | -9/Mines | Assembled infested the area 3741 | -9/Mines | Core integrity fell below 50% 3761 | -9/Mines | Destroyed 10 combat bots 3771 | -9/Mines | Core integrity fell below 20% 3786 | -9/Mines | Destroyed by G-34 Mercenary with Small Laser Last Messages --------------- 03754_ The unstable cave ceiling collapses. 03758_ K-01 Serf collects debris. 03759_ The unstable cave ceiling collapses. 03763_ Lgt. EM Pulse Cannon destroyed. 03763_ VSS Leg destroyed. 03764_ R-06 Scavenger collects Sml. Laser. 03765_ K-01 Serf collects debris. 03766_ The unstable cave ceiling collapses. 03768_ R-06 Scavenger collects Heat Sink. 03769_ The unstable cave ceiling collapses. 03769_ Hrd. Light Armor Plating destroyed. 03770_ K-01 Serf collects debris. 03772_ The unstable cave ceiling collapses. 03774_ K-01 Serf collects debris. 03775_ G-34 Mercenary IFF system glitched. 03775_ K-01 Serf destroyed. 03775_ Cesium-ion Thruster destroyed. 03776_ The unstable cave ceiling collapses. 03777_ Cesium-ion Thruster destroyed. 03778_ The unstable cave ceiling collapses. Map ----- +----------------------------------------------------+ | ????????????? ???????????????????? | | ???????????# ????????????????? | | ??????????? ??????????????? | | ???????????? ???????????????? | | ????????????= * # # ????????????????? | | ????????????? !% ????????????????? | | ????????????? % ?????????????????? | | ??????????#### ??????????????????? | | ?????????## # # ##?????????????????? | | ?????????# # #?????????????????? | | ????????## #??????????????????? | | ????????# # #??????????????????? | | ????????# ##?????????????????? | | ?????????# ##????????????????? | | ??????????# ! ###??????????????? | | ??????????# % #??????????????? | | ??????????# gg =%# ## #??????????????? | | ??????????## # ## ####???????????? | | ???????????## "?????????? | | ???????????# # #######???????????? | | ???????????# d #?????????????????? | | ???????????## #?????????????????? | | ????????????# #?????????????????? | | ????????????# ##?????????????????? | | ?????????????# #??????????????????? | | ?????????????# @ ##?????????????????? | | ?????????????# = ##????????????????? | | ???#########?## ! #????????????????? | | ???# #??### #????????????????? | | ???# #????## #????????????????? | | ???# """#?????## ##??????????? #??? | | ???# """#??????## t! ######### #??? | | ???# """#???????## / *]] #???? | | ???# #???????## %[ #????? | | ???# #???????# ##########????? | | ???## ######??????## #?????????????? | | ????# #??????????## #?????????????? | | ????# #?????????## ##?????????????? | | ????# #?????????# ###??????????????? | | ????# #?????????# ##????????????????? | | ????# #?????????# ##* ##?????????????????? | | ????# #?????????# #####??####????????????? | | ????# #?????????# #?????# ##???????????? | | ????# #?????????# #??### ##??????????? | | ????# #?????????# #### #??????????? | | ????# #??######## #??????????? | | ????# #??# ### ##??????????? | | ????# #??# #######?## #####???????????? | | ????# #??# #????????#####???????????????? | | ????# #??# #????????????????????????????? | +----------------------------------------------------+ Best States ------------- Heat Dissipation 38 Energy Generation 23 Energy Capacity 280 Matter Stores 300 Matter Capacity 300 Sight Range 16 Terrain Scan Density 10 Armor Coverage 300 Evasion (%) 57 Recoil Reduction 3 Item Schematics ----------------- VSS Leg | -9/Materials | Scanalyzed Maul | -9/Materials | Scanalyzed Robot Schematics ------------------ None Fabricated ------------ Nothing Alien Tech Used ----------------- None Achievements -------------- None Challenges ------------ None Game ------ Seed ServoAlloyBarrier Manual? 0 Play Time 00:51:22 Cumulative 129.4 hours Start 2024.02.01 @ 10:15:55 End 2024.02.01 @ 13:40:01 Sessions 1 Manual Loads 0 Difficulty Rogue Special Mode None Game No. 109 Rogue 103 Adventurer 0 Explorer 6 Win Type - Total 3 Types 3/0/0/0/0/0/0/0/0 Lore% 41 Gallery% 54 Achievement% 46 Wizard Run 0 Options --------- ASCII 0 Keyboard 0 Movement Numpad Keybinds 0 Fullscreen 1 Font 18/X11Bold Map View 76x50 Zoom Use 0% Tactical HUD 1 Map Filters NONE Filters NONE Steam 1 RUN: 379ceac9-3a76-48e9-a795-b1612fddf92e